Cogmind - Beta 9.6 @@@ ROGUE MODE // 2020.06.06 @ 19:49:06 Player: Misery Result: Self-destructed Performance ------------- Evolutions (1) 500 Regions Visited (2) 400 Robots Destroyed (67) 335 Value Destroyed (1242) 1242 Prototype IDs (1) 20 Alien Tech Used (0) 0 Bonus (-35) -35 TOTAL SCORE: 2462 Bonus ------- Friendly Fire -35 Cogmind --------- Core Integrity 287/400 Matter 0/300 Energy 92/100 System Corruption 4% Temperature Cool (0) Movement Treading (160) Location -9/Materials Parts ------- > --- POWER (1) -------- (None) > --- PROPULSION (2) --- Light Treads Light Treads > --- UTILITY (3) ------ Medium Storage Unit Large Storage Unit Visual Processing Unit > --- WEAPON (3) ------- Autogun Grenade Launcher > --- INVENTORY (14) --- Light Treads Light Treads Light Treads Light Treads Medium Storage Unit Medium Storage Unit Large Storage Unit Sensor Array Signal Interpreter Improved Terrain Scanner Medium Armor Plating Hacking Suite Peak State ------------ > --- POWER ------------ Ion Engine > --- PROPULSION ------- Light Treads Light Treads > --- UTILITY ---------- Medium Storage Unit Large Storage Unit Visual Processing Unit > --- WEAPON ----------- Improved EM Shotgun Improved EM Shotgun Autogun > --- INVENTORY -------- Light Ion Engine Light Treads Light Treads Light Treads Light Treads Light Treads Medium Storage Unit Large Storage Unit Sensor Array Signal Interpreter Improved Terrain Scanner Hacking Suite Beam Cannon Grenade Launcher [Rating: 16] Favorites ----------- Power Ion Engine Engine Ion Engine Propulsion Wheel Treads Light Treads Wheel Wheel Utility Small Storage Unit Device Sensor Array Storage Small Storage Unit Processor Visual Processing Unit Weapon Assault Rifle Energy Gun Small Laser Ballistic Gun Assault Rifle Launcher Grenade Launcher Build | -11 -10 -9 ------- Run | Scr Mat Mat Slots Evolved 2 | . . 2 Power . | . . . Propulsion . | . . . Utility 1 | . . 1 Weapon 1 | . . 1 Parts Attached 39 | 7 11 21 Power 5 | 1 2 2 Engine 5 | 1 2 2 Core . | . . . Reactor . | . . . Propulsion 8 | 2 1 5 Treads 5 | . . 5 Leg . | . . . Wheel 3 | 2 1 . Hover . | . . . Flight . | . . . Utility 8 | 2 2 4 Device 1 | . . 1 Storage 6 | 2 2 2 Processor 1 | . . 1 Hackware . | . . . Protection . | . . . Artifact . | . . . Weapon 18 | 2 6 10 Energy Gun 7 | 1 2 4 Energy Cannon . | . . . Ballistic Gun 6 | 1 2 3 Ballistic Cannon . | . . . Launcher 5 | . 2 3 Special Weapon . | . . . Impact Weapon . | . . . Slashing Weapon . | . . . Piercing Weapon . | . . . Special Melee Weapon . | . . . Unidentified Prototypes 1 | . . 1 Parts Lost 8 | . . 8 Power 3 | . . 3 Propulsion 2 | . . 2 Utility . | . . . Weapon 3 | . . 3 Highest Loss Streak 5 | . . 5 Average Slot Usage (%) 98 | . 100 96 Engine 12 | . 14 9 Treads 9 | . . 21 Wheel 16 | . 28 . Storage 25 | . 28 22 Processor 4 | . . 10 Energy Gun 14 | . 12 17 Ballistic Gun 10 | . 10 10 Launcher 3 | . 4 3 Naked Turns . | . . . Heaviest Build 44 | 16 43 44 Greatest Support 40 | 20 26 40 Greatest Overweight (x) 1 | . 1 1 Average Overweight (x) . | . . . Largest Inventory Capacity 16 | 8 16 16 Average Capacity 11 | 6 9 14 Most Carried 14 | 7 14 14 Average Carried 10 | 3 8 12 Final Capacity 16 | 8 16 14 Final Carried 14 | 7 14 12 Class Distribution -------------------- 63% | Mutant 14% | Skirmisher 11% | Scavenger-Skirmisher 11% | Scavenger-Mutant Dominant Class ---------------- Mutant | -10/Materials Mutant | -9/Materials Resources | -11 -10 -9 ----------- Run | Scr Mat Mat Matter Collected 858 | 259 352 247 Remotely . | . . . Salvage Created 1648 | 53 557 1038 Parts 134 | 4 37 93 Haulers Intercepted 4 | . 1 3 Recyclers Shooed 1 | . 1 . Parts Field Recycled . | . . . Retrieved Matter . | . . . Parts Self-Destructed . | . . . Prevented . | . . . Kills | -11 -10 -9 ------- Run | Scr Mat Mat Combat Hostiles Destroyed 35 | . 9 26 Guns 10 | . 8 2 AOE 25 | . 1 24 Classes Destroyed 10 | 1 5 4 Worker 6 | . 2 4 Builder 10 | . . 10 Hauler 4 | . 1 3 Recycler 5 | 1 1 3 Mechanic 1 | . . 1 Operator 2 | . 2 . Watcher 4 | . 2 2 Swarmer 10 | . . 10 Grunt 22 | . 9 13 Sentry 3 | . . 3 Best Kill Streak 29 | 1 3 29 Combat Bots Only 9 | . 2 9 Max Kills in Single Turn 6 | 1 2 6 Gunslinging 1 | . 1 . Exploded 3 | . 1 3 Melee . | . . . Uniques/NPCs Destroyed . | . . . Combat | -11 -10 -9 -------- Run | Scr Mat Mat Damage Taken 1737 | . 541 1196 Core 214 | . 101 113 Absorbed by Shields . | . . . Core Remaining (%) 79 | 100 59 . Volleys Fired 139 | 3 84 52 Largest 3 | 2 2 3 Hottest 125 | 60 85 125 Shots Fired 225 | 6 143 76 Gun 192 | 6 142 44 Cannon . | . . . Launcher 33 | . 1 32 Special . | . . . Kinetic 91 | 3 72 16 Thermal 84 | 3 70 11 Explosive 33 | . 1 32 Electromagnetic 17 | . . 17 Robot Hit Streak 9 | 2 9 9 Robot Miss Streak 9 | 1 9 3 Penetration Max . | . . . Secondary Targets 5 | . 2 3 Max Gunslinging Chain 1 | . 1 1 Shots Hit Robots 121 | 4 71 46 Core Hits 109 | 2 27 80 Critical Hits . | . . . Critical Kills . | . . . Critical Parts Destroyed . | . . . Melee Attacks . | . . . Impact . | . . . Slashing . | . . . Piercing . | . . . Sneak Attacks . | . . . Combat Hostiles . | . . . Follow-up Attacks . | . . . Damage Inflicted 3987 | 47 1078 2862 Guns 1579 | 47 1022 510 Cannons . | . . . Explosions 2406 | . 56 2350 Melee . | . . . Ramming 2 | . . 2 Kinetic 656 | 24 508 124 Thermal 820 | 23 514 283 Explosive 2239 | . 56 2183 Electromagnetic 270 | . . 270 Impact . | . . . Slashing . | . . . Piercing . | . . . Highest Corruption 4 | . . 4 Average Corruption 4 | . . 4 Corruption Purged . | . . . Effects 3 | . . 3 Message Errors 1 | . . 1 Targeting Errors 2 | . . 2 Overload Shots . | . . . Overflow Damage 12 | . . 12 Projectiles . | . . . Explosions 12 | . . 12 Melee . | . . . Knockbacks . | . . . Impact . | . . . Kinetic . | . . . Secondary . | . . . Self-Inflicted Damage 247 | . 18 229 Shots 11 | . 1 10 Rammed 1 | . . 1 Targets Rammed 1 | . . 1 Kicked . | . . . Crushed . | . . . Highest Temperature 297 | . 297 156 Average Temperature 56 | . 62 42 Received Heat Transfer 579 | . 294 285 Effects 1 | . 1 . Energy Bleed 1 | . 1 . Siege Activations . | . . . Robots Corrupted . | . . . Combat Hostiles . | . . . Parts Fried 1 | . . 1 Impact Corruptions . | . . . Robots Melted . | . . . Combat Hostiles . | . . . Parts Melted 2 | . 1 1 Heat Transferred 1751 | 50 1189 512 Parts Sabotaged . | . . . Parts Stolen . | . . . Parts Stripped . | . . . Power Chain Reactions 2 | . . 2 Missiles Intercepted . | . . . Alert | -11 -10 -9 ------- Run | Scr Mat Mat Peak Influence 286 | 5 244 286 Average Influence 95 | 1 97 104 Maximum Alert Level 1 | . 1 1 Low Security (%) 84 | 100 87 79 Level 1 15 | . 12 20 Level 2 . | . . . Level 3 . | . . . Level 4 . | . . . Level 5 . | . . . High Security . | . . . Max Security . | . . . Squads Dispatched 5 | . 3 2 Investigation 3 | . 2 1 Extermination . | . . . Reinforcement 2 | . 1 1 Assault . | . . . Garrison . | . . . Intercept . | . . . Construction Impeded 1 | . . 1 Haulers Reinforced . | . . . Stealth | -11 -10 -9 --------- Run | Scr Mat Mat Distress Signals 1 | . . 1 Communications Jammed . | . . . Distress Signals . | . . . Times Spotted 49 | . 17 32 Peak Tracking Total 9 | . 2 9 Tactical Retreats 2 | . . 2 Traps | -11 -10 -9 ------- Run | Scr Mat Mat Traps Triggered 2 | . 1 1 Indirectly . | . . . Trap Hack Attempts . | . . . Triggered . | . . . Disarmed . | . . . Reprogrammed . | . . . Reused . | . . . Traps Extracted . | . . . Installed . | . . . Triggered . | . . . Machines | -11 -10 -9 ---------- Run | Scr Mat Mat Machines Disabled 2 | . . 2 Max in Single Turn 1 | . . 1 Machines Sabotaged . | . . . Garrisons Compromised . | . . . Overloaded Fab Kills . | . . . Fab Network Shutdowns . | . . . Hacking | -11 -10 -9 --------- Run | Scr Mat Mat Machines Accessed 10 | . 7 3 Terminals 9 | . 6 3 Fabricators . | . . . Repair Stations . | . . . Recycling Units 1 | . 1 . Scanalyzers . | . . . Garrison Access . | . . . Total Hacks 28 | . 20 8 Successful 12 | . 7 5 Failed 16 | . 13 3 Catastrophic 3 | . 2 1 Database Lockouts . | . . . Manual 27 | . 19 8 Terminals 27 | . 19 8 Fabricators . | . . . Repair Stations . | . . . Recycling Units 1 | . 1 . Scanalyzers . | . . . Garrison Access . | . . . Terminal Hacks 7 | . 4 3 Part Schematic 2 | . 2 . Robot Analysis 1 | . . 1 Unreport Threat 3 | . 1 2 Recall Investigation 1 | . 1 . Fabricator Hacks . | . . . Repair Station Hacks . | . . . Recycling Unit Hacks . | . . . Scanalyzer . | . . . Garrison Access Hacks . | . . . Unauthorized Hacks 5 | . 3 2 Terminals 4 | . 2 2 Assimilate 1 | . 1 . Botnet 1 | . . 1 Operators 2 | . 1 1 Fabricators . | . . . Repair Stations . | . . . Recycling Units 1 | . 1 . Tunnel 1 | . 1 . Scanalyzers . | . . . Garrison Access . | . . . Data Cores Recovered 1 | . 1 . Used . | . . . Hacking Detections 9 | . 6 3 Full Trace Events . | . . . Feedback Events . | . . . Feedback Blocked . | . . . Robot Schematics Acquired . | . . . Robots Built . | . . . Matter . | . . . Time . | . . . Total Robot Build Rating . | . . . Part Schematics Acquired 2 | . 2 . Parts Built . | . . . Matter . | . . . Time . | . . . Total Part Build Rating . | . . . Parts Repaired . | . . . Time . | . . . Parts Recycled . | . . . Recycled Matter . | . . . Retrieved Matter . | . . . Retrieved Components . | . . . Parts Scanalyzed . | . . . Part Schematics Acquired . | . . . Parts Damaged . | . . . Bothacking | -11 -10 -9 ------------ Run | Scr Mat Mat Used RIF Installer . | . . . Robots Hacked . | . . . Non-combat . | . . . Combat . | . . . Robot Hacks Applied . | . . . Relay Couplers Released . | . . . Robots Rewired . | . . . Allies Hacked . | . . . Hacks Repelled . | . . . Allies | -11 -10 -9 -------- Run | Scr Mat Mat Total Allies 1 | . 1 . Largest Group 1 | . 1 . Highest-Rated Group 10 | . 10 . Highest-Rated Ally 10 | . 10 . Total Orders . | . . . Ally Attacks . | . . . Total Damage . | . . . Kills . | . . . Allies Corrupted . | . . . Allies Melted . | . . . Intel | -11 -10 -9 ------- Run | Scr Mat Mat Robot Analysis Total 1 | . . 1 Derelict Logs Recovered . | . . . Drone Launches . | . . . Drone Recoveries . | . . . Exploration | -11 -10 -9 ------------- Run | Scr Mat Mat Turns Passed 1368 | 67 734 567 Spaces Moved 833 | 52 529 252 Core 1 | 1 . . Treads 238 | . . 238 Legs . | . . . Wheels 594 | 51 529 14 Hover . | . . . Flight . | . . . Fastest Speed 50 | 50 80 100 Average Speed 107 | 79 86 156 Slowest Speed 160 | 80 100 160 Overloaded Moves . | . . . Propulsion Burnouts . | . . . Robots Hopped . | . . . Cave-ins Triggered 1 | . . 1 Exploration Rate (%) 41 | 4 86 33 Regions Visited 2 Branch Regions . Pre-discovered Areas 1 | . 1 . Known Exits Taken . | . . . Unknown Exits Taken 2 | 1 1 . Scrap Searched . | . . . Spaces Dug . | . . . Terrain Destroyed 156 | . 10 146 Melee . | . . . Projectile . | . . . AOE 156 | . 10 146 Actions | -11 -10 -9 --------- Run | Scr Mat Mat Total 1083 | 68 665 350 Wait 29 | . 19 10 Move 830 | 51 528 251 Hop . | . . . Pick Up 25 | 7 12 6 Fast Attach 13 | 7 1 5 Attach 6 | . . 6 Detach . | . . . Swap 20 | . 10 10 Drop 19 | . 11 8 Fire 139 | 3 84 52 Melee . | . . . Ram . | . . . Kick . | . . . Crush 1 | . . 1 Escape Stasis 1 | . . 1 Rewire . | . . . Trap . | . . . Miscellaneous . | . . . Route ------- -11/Scrapyard -10/Materials (discovered 3 exits: *Mat x3) -9/Materials (discovered 1 exit: [*Min]) History --------- Turn | Location | Event 38 | -11/Scrapyard | Discovered new exit (range 12) 68 | -11/Scrapyard | Entered Materials 301 | -10/Materials | Build established: Mutant 302 | -10/Materials | Discovered new exit (range 16) 453 | -10/Materials | Discovered new exit (range 8) 558 | -10/Materials | Discovered new exit (range 15) 802 | -10/Materials | Entered another Materials area 802 | -9/Materials | Evolved 2 slots: Utility x1, Weapon x1 1198 | -9/Materials | Crushed by falling debris 1204 | -9/Materials | Destroyed 9 combat bots 1252 | -9/Materials | Lost 5 parts (2p2n1w) 1360 | -9/Materials | Discovered new exit (range 15) 1369 | -9/Materials | Self-destructed Last Messages --------------- 01353_ K-01 Serf collects debris. 01353_ R-06 Scavenger collects Sml. Storage Unit. 01354_ U-05 Engineer lays Concrete. 01355_ U-05 Engineer builds a Wall. 01356_ The unstable cave ceiling collapses. 01358_ K-01 Serf collects debris. 01358_ U-05 Engineer lays Concrete. 01360_ EXIT=FOUND 01360_ U-05 Engineer lays Concrete. 01360_ T-07 Excavator is excavating. 01361_ U-05 Engineer lays Concrete. 01362_ U-05 Engineer builds a Wall. 01362_ U-05 Engineer lays Concrete. 01362_ K-01 Serf collects debris. 01363_ U-05 Engineer builds a Wall. 01364_ T-07 Excavator is excavating. 01365_ The unstable cave ceiling collapses. 01367_ U-05 Engineer builds a Wall. 01367_ R-06 Scavenger collects Wheel. 01368_ T-07 Excavator is excavating. Map ----- +----------------------------------------------------+ | ???????????????????????????????????????? | | ???????????????????????????????????????? | | ???????????????????????????????????????? | | ???????????????????????????????????????? | | ???????????????????????????????????????? | | ???????????????????????????????????????? | | ???????????????????????????????????????? | | ???????????????????????????????????????? | | ?????????????!?????????????????????????? | | ?????????#"" ?????????????????????????? | | ?????????# ????#####????????????????? | | ?????????#